Workbook

Sheet Plan2 (hidden)

Sheet Plan3 (hidden)

Sheet Plan4
A1: CADERNOS | B1: Empresa 1 | C1: Empresa 2 | D1: Empresa 3 | E1: Empresa 4 | F1: Menor | G1: Maior | H1: Variação %
A2: Caderno Univ. Capa Dura – Espiral (96 fls.) 1 Matéria | B2: 14.9 | C2: 11.5 | D2: 10.75 | E2: 5.99 | F2: =MIN(B2:E2) -> R$ 5.99 | G2: =MAX(B2:E2) -> R$ 14.90 | H2: =(G2-F2)/F2 -> 149%
A3: Caderno Univ. Capa Dura – Espiral (200 fls.) 10 matérias | B3: 25.9 | C3: 16.9 | D3: 19.9 | E3: 10.5 | F3: =MIN(B3:E3) -> R$ 10.50 | G3: =MAX(B3:E3) -> R$ 25.90 | H3: =(G3-F3)/F3 -> 147%
A4: Caderno Caligrafia Brochura (40 fls.) | B4: 4.9 | C4: 6.9 | D4: 3 | E4: 2.6 | F4: =MIN(B4:E4) -> R$ 2.60 | G4: =MAX(B4:E4) -> R$ 6.90 | H4: =(G4-F4)/F4 -> 165%
A5: Caderno para Desenho – (40 fls.) | B5: 10.9 | C5: 9.9 | D5: 7.5 | E5: 7.6 | F5: =MIN(B5:E5) -> R$ 7.50 | G5: =MAX(B5:E5) -> R$ 10.90 | H5: =(G5-F5)/F5 -> 45%
A6: Caderno Pequeno – Capa Dura (96 fls) | B6: 9.8 | C6: 9.9 | D6: 7.5 | E6: 6.1 | F6: =MIN(B6:E6) -> R$ 6.10 | G6: =MAX(B6:E6) -> R$ 9.90 | H6: =(G6-F6)/F6 -> 62%
A7: PASTAS E PAPÉIS | G7: =MAX(B7:E7) -> R$ 0.00
A8: Pasta Papelão com Elástico | B8: 3.9 | C8: 3.8 | D8: 3.6 | E8: 3.5 | F8: =MIN(B8:E8) -> R$ 3.50 | G8: =MAX(B8:E8) -> R$ 3.90 | H8: =(G8-F8)/F8 -> 11%
A9: Pasta de Plástico com Elástico | B9: 3.9 | C9: 3.9 | D9: 4.5 | E9: 2.9 | F9: =MIN(B9:E9) -> R$ 2.90 | G9: =MAX(B9:E9) -> R$ 4.50 | H9: =(G9-F9)/F9 -> 55%
A10: Folha de Cartolina (0,5 x 0,66 cm) | B10: 1.5 | C10: 1.6 | D10: 1.5 | E10: 0.95 | F10: =MIN(B10:E10) -> R$ 0.95 | G10: =MAX(B10:E10) -> R$ 1.60 | H10: =(G10-F10)/F10 -> 68%
A11: Folha de EVA | B11: 3 | C11: 2.5 | D11: 2.9 | E11: 1.9 | F11: =MIN(B11:E11) -> R$ 1.90 | G11: =MAX(B11:E11) -> R$ 3.00 | H11: =(G11-F11)/F11 -> 58%
A12: MATERIAIS
A13: Apontador com depósito | B13: 2.5 | C13: 1.9 | D13: 2 | E13: 0.9 | F13: =MIN(B13:E13) -> R$ 0.90 | G13: =MAX(B13:E13) -> R$ 2.50 | H13: =(G13-F13)/F13 -> 178%
A14: Cola Bastão (9g) | B14: 1.9 | C14: 2.9 | D14: 2 | E14: 1.3 | F14: =MIN(B14:E14) -> R$ 1.30 | G14: =MAX(B14:E14) -> R$ 2.90 | H14: =(G14-F14)/F14 -> 123%
A15: Corretivo Líquido a base de água (18ml) | B15: 4.9 | C15: 5.4 | D15: 4.75 | E15: 2.1 | F15: =MIN(B15:E15) -> R$ 2.10 | G15: =MAX(B15:E15) -> R$ 5.40 | H15: =(G15-F15)/F15 -> 157%
A16: Pincel nº 10 | B16: 3.9 | C16: 4 | D16: 4.5 | E16: 3.15 | F16: =MIN(B16:E16) -> R$ 3.15 | G16: =MAX(B16:E16) -> R$ 4.50 | H16: =(G16-F16)/F16 -> 43%
A17: Régua de Plástico (30cm) | B17: 3.9 | C17: 1.5 | D17: 3 | E17: 1.2 | F17: =MIN(B17:E17) -> R$ 1.20 | G17: =MAX(B17:E17) -> R$ 3.90 | H17: =(G17-F17)/F17 -> 225%
A18: Tesoura sem ponta | B18: 5.9 | C18: 3.9 | D18: 7.9 | E18: 2.4 | F18: =MIN(B18:E18) -> R$ 2.40 | G18: =MAX(B18:E18) -> R$ 7.90 | H18: =(G18-F18)/F18 -> 229%
A19: Tinta Guache (6 unidades) | B19: 7.9 | C19: 6.9 | D19: 7.5 | E19: 4.9 | F19: =MIN(B19:E19) -> R$ 4.90 | G19: =MAX(B19:E19) -> R$ 7.90 | H19: =(G19-F19)/F19 -> 61%
A20: Borracha Branca (nº 60) | B20: 1.5 | C20: 1.5 | D20: 1.9 | E20: 0.5 | F20: =MIN(B20:E20) -> R$ 0.50 | G20: =MAX(B20:E20) -> R$ 1.90 | H20: =(G20-F20)/F20 -> 280%
A21: Caneta Esferográfica (ponta média) | B21: 1.6 | C21: 1.5 | D21: 1.5 | E21: 0.75 | F21: =MIN(B21:E21) -> R$ 0.75 | G21: =MAX(B21:E21) -> R$ 1.60 | H21: =(G21-F21)/F21 -> 113%
A22: Giz de Cera (Caixa c/ 12 unidades) | B22: 7.9 | C22: 4.9 | D22: 10.5 | E22: 4.5 | F22: =MIN(B22:E22) -> R$ 4.50 | G22: =MAX(B22:E22) -> R$ 10.50 | H22: =(G22-F22)/F22 -> 133%
A23: Lápis Preto nº 2 | B23: 1.5 | C23: 0.75 | D23: 1 | E23: 0.5 | F23: =MIN(B23:E23) -> R$ 0.50 | G23: =MAX(B23:E23) -> R$ 1.50 | H23: =(G23-F23)/F23 -> 200%
A24: Lápis de Cor Longo (Caixa c/ 12 unidades) | B24: 7.5 | C24: 5.9 | D24: 7.9 | E24: 2.9 | F24: =MIN(B24:E24) -> R$ 2.90 | G24: =MAX(B24:E24) -> R$ 7.90 | H24: =(G24-F24)/F24 -> 172%
A25: Massa para Modelar (Caixa c/ 12 cores) | B25: 6.9 | C25: 5.9 | D25: 8.6 | E25: 3.3 | F25: =MIN(B25:E25) -> R$ 3.30 | G25: =MAX(B25:E25) -> R$ 8.60 | H25: =(G25-F25)/F25 -> 161%
A26: TOTAL | B26: =SUM(B2:B25) -> R$ 136.50 | C26: =SUM(C2:C25) -> R$ 113.85 | D26: =SUM(D2:D25) -> R$ 124.20 | E26: =SUM(E2:E25) -> R$ 70.44
C29: MAIOR PREÇO
C30: MENOR PREÇO
B32: * Os preços dos produtos relacionados estão expressos em Reais(R$).
B33: ** Pesquisa realizada no dia 09/01/2026.
B34: *** Foram pesquisados 4 (quatro) estabelecimentos especializados no segmento.
